bitfinex/quotes_SOLUSD_20260213
["timestamp","ask_amount","ask_price","bid_price","bid_amount"]
[1770994264485,1.65746409,81.759,81.71,17.33448644]
[1770994264704,1.65746409,81.749,81.71,17.33448644]
[1770994265206,17.33448644,81.74,81.7,17.33448644]
[1770994265511,42.80926636,81.758,81.73,17.33448644]
[1770994265719,1.65746409,81.757,81.698,14.02074815]
[1770994266015,1.65746409,81.731,81.7,17.33448644]
[1770994266309,1.65746409,81.731,81.698,1.78054644]
[1770994266310,1.65746409,81.729,81.698,1.78054644]
[1770994266499,36.96,81.749,81.68,17.33448644]
[1770994266500,1.79614733,81.719,81.68,17.33448644]
[1770994266701,14.03335333,81.718,81.69,17.33448644]
[1770994267022,1.79614733,81.717,81.68,17.33448644]
[1770994267400,17.33448644,81.71,81.652,30.61772985]
[1770994267602,19.13063377,81.71,81.68,17.33448644]
[1770994267789,17.33448644,81.71,81.67,17.33448644]
[1770994267988,1.79614733,81.689,81.66,17.33448644]
[1770994268188,1.79614733,81.699,81.66,17.33448644]
[1770994268506,1.79614733,81.699,81.67,17.33448644]
[1770994268689,42.840706,81.698,81.67,17.33448644]
[1770994268894,1.79614733,81.697,81.651,0.07046127]
[1770994269092,1.79614733,81.697,81.66,17.33448644]
[1770994270308,1.79614733,81.679,81.64,17.33448644]
[1770994270515,1.79614733,81.669,81.63,17.33448644]
[1770994270843,12.24469804,81.668,81.64,17.33448644]
[1770994271041,48.96080687,81.698,81.6,42.89215686]
[1770994271042,12.2431989,81.678,81.66,17.33448644]
[1770994271328,12.24080103,81.694,81.66,17.33448644]
[1770994271540,1.79614733,81.679,81.64,17.33448644]
[1770994271713,1.79614733,81.679,81.65,17.33448644]
[1770994272039,1.79614733,81.679,81.64,17.33448644]
[1770994272705,1.79614733,81.669,81.63,17.33448644]
[1770994273235,42.85119615,81.678,81.6,42.89215686]
[1770994273236,1.79614733,81.659,81.62,17.33448644]
[1770994273418,1.79614733,81.63,81.58,0.10172218]
[1770994273727,1.79614733,81.629,81.59,17.33448644]
[1770994273927,1.79614733,81.629,81.6,17.33448644]
[1770994274228,1.79614733,81.629,81.58,0.10172218]
[1770994274431,1.79614733,81.629,81.6,17.33448644]
[1770994274730,12.25069828,81.628,81.58,0.10172218]
[1770994274937,12.25069828,81.628,81.6,17.33448644]
[1770994275864,1.79614733,81.629,81.6,17.33448644]
[1770994276146,12.24928861,81.638,81.61,17.33448644]
[1770994276349,1.79614733,81.637,81.59,0.11965079]
[1770994276531,1.79614733,81.619,81.562,0.11965079]
[1770994276733,1.79614733,81.619,81.57,17.33448644]
[1770994276931,17.33448644,81.62,81.57,17.33448644]
[1770994276932,1.79614733,81.609,81.57,17.33448644]
[1770994277130,1.79614733,81.609,81.535,4.61729252]
[1770994277131,1.79614733,81.617,81.59,17.33448644]
[1770994277529,1.79614733,81.617,81.58,17.33448644]
[1770994277728,1.79614733,81.617,81.57,17.33448644]
[1770994277953,1.79614733,81.617,81.58,17.33448644]
[1770994278251,97.98712607,81.644,81.564,12.26024604]
[1770994278252,1.79614733,81.642,81.61,17.33448644]
[1770994278462,1.79614733,81.648,81.61,17.33448644]
[1770994279060,1.79614733,81.646,81.62,17.33448644]
[1770994279459,42.86746604,81.647,81.62,17.33448644]
[1770994279460,12.24784744,81.647,81.62,17.33448644]
[1770994280242,14.04399477,81.647,81.61,17.33448644]
[1770994280456,14.04399477,81.647,81.62,17.33448644]
[1770994280768,12.24784744,81.647,81.62,17.33448644]
[1770994281063,1.79614733,81.656,81.62,17.33448644]
[1770994281261,1.79614733,81.649,81.62,17.33448644]
[1770994281656,1.79614733,81.649,81.607,12.25385077]
[1770994281964,1.79614733,81.649,81.62,17.33448644]
[1770994282163,12.24634752,81.657,81.63,17.33448644]
[1770994282367,12.24469804,81.668,81.64,17.33448644]
[1770994282766,1.79614733,81.697,81.66,17.33448644]
[1770994282943,1.79614733,81.697,81.67,17.33448644]
[1770994283144,1.79614733,81.689,81.636,0.15923627]
[1770994283444,17.33448644,81.66,81.62,17.33448644]
[1770994283649,1.79614733,81.649,81.61,17.33448644]
[1770994284444,1.79614733,81.649,81.62,17.33448644]
[1770994284742,299.89228356,81.696,81.602,12.2546016]
[1770994284743,1.79614733,81.679,81.64,17.33448644]
[1770994284942,42.84175479,81.696,81.66,17.33448644]
[1770994284943,12.24050137,81.696,81.66,17.33448644]
[1770994285162,17.33448644,81.71,81.653,0.16996502]
[1770994285163,12.24080103,81.694,81.67,17.33448644]
[1770994285472,12.23915305,81.705,81.68,17.33448644]
[1770994285670,1.79614733,81.715,81.658,0.16996502]
[1770994285850,1.79614733,81.715,81.654,42.86379111]
[1770994285851,1.79614733,81.715,81.69,17.33448644]
[1770994286057,1.79614733,81.715,81.68,17.33448644]
[1770994286447,1.79614733,81.709,81.67,17.33448644]
[1770994286647,17.33448644,81.69,81.65,17.33448644]
[1770994286863,1.79614733,81.679,81.65,17.33448644]
[1770994287174,1.79614733,81.699,81.66,17.33448644]
[1770994287468,1.79614733,81.697,81.66,17.33448644]
[1770994288468,1.79614733,81.689,81.65,17.33448644]
[1770994288662,1.79614733,81.679,81.65,17.33448644]
[1770994288864,1.79614733,81.679,81.612,61.3]
[1770994288865,1.79614733,81.679,81.62,0.19072327]
[1770994289061,1.79614733,81.679,81.64,17.33448644]
[1770994289360,1.79614733,81.679,81.63,17.33448644]
[1770994289560,1.79614733,81.677,81.65,17.33448644]
[1770994289766,14.03934623,81.678,81.632,0.19072327]
[1770994289953,14.03934623,81.678,81.65,17.33448644]
[1770994290270,12.24163499,81.689,81.66,17.33448644]
[1770994290454,12.24163499,81.689,81.67,17.33448644]
[1770994290655,1.79614733,81.699,81.67,17.33448644]
[1770994290856,37.02,81.715,81.62,153.14873804]
[1770994290857,1.85903357,81.689,81.65,17.33448644]
[1770994291070,1.85903357,81.689,81.62,42.88164665]
[1770994291071,17.33448644,81.68,81.64,17.33448644]
[1770994291274,1.85903357,81.669,81.63,17.33448644]
[1770994291464,1.85903357,81.669,81.64,17.33448644]
[1770994291975,1.85903357,81.679,81.64,17.33448644]
[1770994292151,1.85903357,81.678,81.64,17.33448644]
[1770994292355,1.85903357,81.678,81.633,12.24981351]
[1770994292550,1.85903357,81.678,81.65,17.33448644]
[1770994292954,1.85903357,81.678,81.64,17.33448644]
[1770994293167,1.85903357,81.678,81.65,17.33448644]
[1770994293672,1.85903357,81.676,81.622,0.21241764]
[1770994293848,1.85903357,81.676,81.64,17.33448644]
[1770994294455,1.85903357,81.676,81.614,61.06]
[1770994294456,1.85903357,81.659,81.62,17.33448644]
[1770994294863,1.85903357,81.659,81.63,17.33448644]
[1770994295069,1.85903357,81.669,81.63,17.33448644]
[1770994295667,1.85903357,81.667,81.63,17.33448644]
[1770994296080,1.85903357,81.659,81.62,17.33448644]
[1770994296481,1.85903357,81.659,81.63,17.33448644]
[1770994296682,1.85903357,81.659,81.591,4.61729252]
[1770994296683,1.79614733,81.686,81.65,17.33448644]
[1770994297182,12.24184998,81.687,81.629,0.23216828]
[1770994297397,1.79614733,81.704,81.67,17.33448644]
[1770994297566,1.79614733,81.699,81.66,17.33448644]
[1770994297768,1.79614733,81.699,81.67,17.33448644]
[1770994297769,12.24020171,81.698,81.67,17.33448644]
[1770994297961,42.840706,81.698,81.66,17.33448644]
[1770994298277,1.79614733,81.697,81.631,0.23596519]
[1770994298480,1.79614733,81.689,81.65,17.33448644]
[1770994298681,1.79614733,81.669,81.63,17.33448644]
[1770994298888,201.96332833,81.698,81.62,17.33448644]
[1770994298889,1.79614733,81.659,81.62,17.33448644]
[1770994299189,1.79614733,81.649,81.62,17.33448644]
[1770994299376,1.79614733,81.661,81.62,17.33448644]
[1770994299571,1.79614733,81.659,81.62,17.33448644]
[1770994299774,1.79614733,81.657,81.62,17.33448644]
[1770994299967,1.79614733,81.649,81.6,17.33448644]
[1770994300490,1.79614733,81.655,81.62,17.33448644]
[1770994300859,1.79614733,81.655,81.62,11.13146183]
[1770994301063,12.24619755,81.658,81.63,11.13146183]
[1770994301278,1.79614733,81.649,81.61,11.13146183]
[1770994301578,12.24619755,81.658,81.59,23.38782589]
[1770994301579,1.79614733,81.639,81.59,23.38782589]
[1770994301779,11.13146183,81.64,81.59,23.38782589]
[1770994301780,1.79614733,81.637,81.59,23.38782589]
[1770994301965,1.79614733,81.637,81.59,11.13146183]
[1770994302294,1.79614733,81.615,81.58,11.13146183]
[1770994302581,1.79614733,81.615,81.546,30.65722055]
[1770994302582,1.79614733,81.629,81.59,11.13146183]
[1770994302792,1.79614733,81.629,81.6,11.13146183]
[1770994302977,1.79614733,81.629,81.59,11.13146183]
[1770994303184,1.79614733,81.629,81.583,0.25436236]
[1770994303389,1.79614733,81.629,81.59,11.13146183]
[1770994303684,44.67359133,81.628,81.59,11.13146183]
[1770994303870,1.79614733,81.627,81.59,23.38780881]
[1770994304062,1.79614733,81.627,81.59,11.13146183]
[1770994304271,42.877444,81.628,81.561,4.61729252]
[1770994304272,12.25069828,81.628,81.6,11.13146183]
[1770994304464,30.62169508,81.642,81.6,11.13146183]
[1770994304465,30.60991683,81.673,81.621,0.25790938]
[1770994304777,1.79614733,81.659,81.62,11.13146183]
[1770994304968,12.24409834,81.672,81.64,11.13146183]
[1770994305168,48.94596289,81.723,81.6,11.13146183]
[1770994305169,11.13146183,81.75,81.661,0.26142838]
[1770994305372,1.79614733,81.749,81.668,0.26142838]
[1770994305574,189.55839006,81.769,81.68,11.13146183]
[1770994305575,1.79614733,81.719,81.68,11.13146183]
[1770994305884,12.2331641,81.745,81.71,11.13146183]
[1770994306079,12.2331641,81.745,81.662,110.21037936]
[1770994306080,12.22957355,81.769,81.73,11.13146183]
[1770994306385,11.33146183,81.77,81.686,5.36086188]
[1770994306386,0.2,81.77,81.75,11.13146183]
[1770994306585,12.22957355,81.769,81.75,11.13146183]
[1770994306885,12.42651878,81.79,81.748,0.2682943]
[1770994307067,1.89614733,81.789,81.75,17.29876489]
[1770994307264,0.2,81.79,81.76,17.29876489]
[1770994307465,1e-08,81.81,81.78,17.29876489]
[1770994307664,1.93030714,81.842,81.8,17.29876489]
[1770994307866,1.93030714,81.829,81.79,23.68557984]
[1770994308266,129.04110897,81.841,81.75,17.29876489]
[1770994308267,1.93030714,81.809,81.75,17.29876489]
[1770994308479,1.93030714,81.799,81.74,17.29876489]
[1770994308674,37.42,81.798,81.74,17.29876489]
[1770994308997,1.93030714,81.789,81.73,17.29876489]
[1770994309294,1.93030714,81.819,81.77,17.29876489]
[1770994309486,1.93030714,81.817,81.77,17.29876489]
[1770994309676,1.93030714,81.815,81.76,17.29876489]
[1770994309872,1.93030714,81.799,81.706,12.23900325]
[1770994310072,1.93030714,81.769,81.72,17.29876489]
[1770994310477,1.93030714,81.769,81.74,17.29876489]
[1770994310670,5.36086188,81.825,81.686,5.36086188]
[1770994310671,1.93030714,81.792,81.75,17.29876489]
[1770994310905,12.22254815,81.816,81.78,17.29876489]
[1770994311199,1.93030714,81.815,81.78,17.29876489]
[1770994311389,1.93030714,81.815,81.636,36.74]
[1770994311390,1.93030714,81.815,81.76,17.29876489]
[1770994311581,1.93030714,81.815,81.77,17.29876489]
[1770994311784,1.93030714,81.809,81.732,12.23510987]
[1770994312000,238.34551542,81.814,81.77,17.29876489]
[1770994312001,51.61315408,81.814,81.77,17.29876489]
[1770994312178,51.61315408,81.814,81.732,91.76332402]
[1770994312179,1.93030714,81.849,81.8,17.29876489]
[1770994312494,1.93030714,81.848,81.82,17.29876489]
[1770994312673,1.93030714,81.848,81.83,17.29876489]
[1770994313079,1.93030714,81.848,81.775,61.06]
[1770994313080,1.93030714,81.848,81.787,0.02073416]
[1770994313276,1.93030714,81.848,81.83,17.29876489]
[1770994313498,12.21673013,81.855,81.84,17.29876489]
[1770994313694,12.21553082,81.863,81.8,0.02073416]
[1770994313891,1.93030714,81.862,81.83,17.29876489]
[1770994314106,1.93030714,81.862,81.84,17.29876489]
[1770994314394,48.82845184,81.92,81.85,17.29876489]
[1770994314395,12.21301895,81.88,81.85,17.29876489]
[1770994314704,1.93030714,81.879,81.83,17.29876489]
[1770994314892,1.93030714,81.879,81.84,17.26789916]
[1770994315100,1.93030714,81.879,81.85,17.26789916]
[1770994315297,1.93030714,81.879,81.797,5.36086188]
[1770994315298,1.93030714,81.903,81.834,0.0273399]
[1770994315600,12.2094159,81.904,81.789,299.55128436]
[1770994315601,1.93030714,81.889,81.84,17.26789916]
[1770994315802,1.93030714,81.887,81.85,17.26789916]
[1770994316599,1.93030714,81.879,81.84,17.26789916]
[1770994317100,1.93030714,81.869,81.82,17.26789916]
[1770994317413,1.93030714,81.849,81.81,17.26789916]
[1770994317700,1.93030714,81.876,81.83,17.26789916]
[1770994317902,1.93030714,81.874,81.83,17.26789916]
[1770994318585,1.93030714,81.874,81.84,17.26789916]
[1770994318780,42.74809159,81.875,81.826,12.22101606]
[1770994318781,12.21374045,81.875,81.85,17.26789916]
[1770994318986,12.21374045,81.875,81.84,17.26789916]
[1770994319595,37.48,81.9,81.826,42.77365214]
[1770994319596,1.93030714,81.898,81.86,17.26789916]
[1770994319896,1.93030714,81.879,81.83,17.26789916]
[1770994320107,1.93030714,81.879,81.827,12.22077214]
[1770994320108,1.93030714,81.879,81.84,17.26789916]
[1770994320283,1.93030714,81.879,81.85,17.26789916]
[1770994320487,1.93030714,81.887,81.83,0.04331372]
[1770994320690,1.93030714,81.879,81.84,17.26789916]
[1770994320900,1.93030714,81.887,81.85,17.26789916]
[1770994321203,1.93030714,81.879,81.83,17.26789916]
[1770994321409,1.93030714,81.859,81.81,17.26789916]
[1770994321586,1.93030714,81.859,81.775,48.91413137]
[1770994321587,1.93030714,81.839,81.79,17.26789916]
[1770994321781,17.26789916,81.83,81.79,17.26789916]
[1770994322083,1.93030714,81.819,81.771,12.22927443]
[1770994322408,1.93030714,81.809,81.76,17.26789916]
[1770994322704,1.93030714,81.821,81.77,17.26789916]
[1770994322914,1.93030714,81.809,81.753,0.05547722]
[1770994323090,1.93030714,81.804,81.77,17.26789916]
[1770994323295,1.93030714,81.789,81.74,17.32337638]
[1770994323501,1.93030714,81.789,81.75,17.26789916]
[1770994323689,1.93030714,81.789,81.76,17.26789916]
[1770994323889,73.22613899,81.938,81.74,0.05547722]
[1770994323890,1.93030714,81.818,81.771,12.22927443]
[1770994324102,1.93030714,81.809,81.77,17.26789916]
[1770994324409,1.93030714,81.822,81.79,17.26789916]
[1770994324914,12.22180124,81.821,81.79,17.26789916]
[1770994325086,30.54720573,81.841,81.8,17.26789916]
[1770994325283,1.93030714,81.839,81.791,0.06137706]
[1770994325486,12.21762025,81.849,81.81,17.26789916]
[1770994325713,12.21762025,81.849,81.82,17.26789916]
[1770994326008,1.93030714,81.858,81.82,17.26789916]
[1770994326208,1.93030714,81.858,81.81,17.26789916]
[1770994326393,1.93030714,81.839,81.778,0.06427852]
[1770994326597,1.93030714,81.829,81.78,17.26789916]
[1770994326793,1.93030714,81.829,81.79,17.26789916]
[1770994326996,1.93030714,81.829,81.79,11.08221432]
[1770994327392,1.93030714,81.841,81.8,11.08221432]
[1770994327689,1.93030714,81.839,81.81,11.08221432]
[1770994327894,1.93030714,81.837,81.8,11.08221432]
[1770994328118,1.93030714,81.837,81.79,23.30857702]
[1770994328426,42.76741855,81.838,81.731,48.94101082]
[1770994328427,1.93030714,81.819,81.769,0.070015]
[1770994328593,1.93030714,81.799,81.743,12.23346341]
[1770994328919,1.93030714,81.802,81.77,11.08221432]
[1770994329290,1.93030714,81.802,81.76,11.08221432]
[1770994329494,1.93030714,81.799,81.76,11.08221432]
[1770994329912,12.22523778,81.798,81.761,12.23077017]
[1770994330094,12.22523778,81.798,81.76,11.08221432]
[1770994330294,1.93030714,81.797,81.751,12.23226627]
[1770994330497,42.78833223,81.798,81.751,12.23226627]
[1770994330498,12.22523778,81.798,81.77,11.08221432]
[1770994330704,32.48956588,81.809,81.77,11.08221432]
[1770994330705,12.22374339,81.808,81.77,11.08221432]
[1770994330901,12.22374339,81.808,81.78,11.08221432]
[1770994331107,12.22374339,81.808,81.77,11.08221432]
[1770994331305,12.22374339,81.808,81.721,0.07839329]
[1770994331306,1.93030714,81.789,81.721,0.07839329]
[1770994331519,1.93030714,81.789,81.75,11.08221432]
[1770994331817,42.78310188,81.808,81.73,11.08221432]
[1770994331818,1.93030714,81.779,81.73,11.08221432]
[1770994331993,11.08221432,81.78,81.722,0.07839329]
[1770994331994,1.93030714,81.777,81.74,11.08221432]
[1770994332194,1.93030714,81.777,81.722,0.07839329]
[1770994332195,1.93030714,81.777,81.73,11.08221432]
[1770994332394,1.93030714,81.759,81.71,11.08221432]
[1770994332698,1.93030714,81.759,81.72,11.08221432]
[1770994332896,1.93030714,81.759,81.71,11.08221432]
[1770994333096,1.93030714,81.759,81.72,11.08221432]
[1770994333298,42.79879674,81.778,81.7,0.2]
[1770994333299,1.93030714,81.739,81.7,0.2]
[1770994333511,1.93030714,81.739,81.701,12.23975226]
[1770994333813,1.93030714,81.729,81.7,0.2]
[1770994334014,1.93030714,81.719,81.7,1e-08]
[1770994334203,1.93030714,81.709,81.7,1e-08]
[1770994334399,1.93030714,81.709,81.66,11.08221432]
[1770994334602,140.71064994,81.728,81.66,11.08221432]
[1770994334603,1.93030714,81.689,81.66,11.08221432]
[1770994335201,1.93030714,81.679,81.63,11.08221432]
[1770994335414,1.93030714,81.679,81.64,11.08221432]
[1770994335606,1.93030714,81.679,81.618,0.08918492]
[1770994335607,11.08221432,81.67,81.63,11.08221432]
[1770994335816,1.93030714,81.679,81.64,11.08221432]
[1770994336014,14.17785456,81.649,81.61,11.08221432]
[1770994336411,14.17785456,81.649,81.6,11.08221432]
[1770994336412,1.93030714,81.639,81.6,11.08221432]
[1770994336610,12.24754742,81.649,81.62,11.08221432]
[1770994336821,1.93030714,81.639,81.6,11.08221432]
[1770994337119,1.93030714,81.629,81.59,17.36801504]
[1770994337706,1.93030714,81.609,81.57,17.36801504]
[1770994337934,1.93030714,81.64,81.59,17.36801504]
[1770994338221,14.18085535,81.629,81.591,12.25625375]
[1770994338399,14.18085535,81.629,81.6,17.36801504]
[1770994338602,14.18085535,81.629,81.569,60.34]
[1770994338603,1.93030714,81.609,81.57,17.36801504]
[1770994338803,1.93030714,81.609,81.54,0.1]
[1770994338804,1.93030714,81.579,81.54,0.1]
[1770994339106,1.88030714,81.549,81.502,12.26962408]
[1770994339419,17.36801504,81.52,81.5,1e-08]
[1770994339612,17.36801504,81.52,81.469,0.19953893]
[1770994339613,1.84193475,81.509,81.46,17.36801504]
[1770994339805,55.14,81.587,81.445,12.27822456]
[1770994339806,54.74801504,81.52,81.49,17.36801504]
[1770994339998,1.84193475,81.519,81.48,17.36801504]
[1770994340197,1.84193475,81.519,81.49,17.36801504]
[1770994340404,37.38,81.542,81.466,12.27505953]
[1770994340405,1.84193475,81.532,81.5,17.36801504]
[1770994340627,1.84193475,81.562,81.52,17.36801504]
[1770994340810,12.25913885,81.572,81.521,0.30488243]
[1770994341121,17.36801504,81.57,81.521,0.30488243]
[1770994341314,17.36801504,81.57,81.491,4.61729252]
[1770994341315,1.84193475,81.559,81.53,17.36801504]
[1770994341513,12.25913885,81.572,81.54,17.36801504]
[1770994342023,12.25670441,81.588,81.56,17.36801504]
[1770994342202,1.84193475,81.579,81.54,17.36801504]
[1770994342406,17.36801504,81.56,81.52,17.36801504]
[1770994342609,17.36801504,81.57,81.54,17.36801504]
[1770994342922,1.84193475,81.569,81.53,17.36801504]
[1770994343129,17.36801504,81.57,81.506,92.01776555]
[1770994343130,1.84193475,81.559,81.52,17.36801504]
[1770994343343,17.36801504,81.55,81.51,17.36801504]
[1770994343504,17.36801504,81.57,81.53,17.36801504]
[1770994343814,1.84193475,81.58,81.54,17.36801504]
[1770994344012,12.25670441,81.588,81.55,17.36801504]
[1770994344332,17.36801504,81.56,81.52,17.36801504]
[1770994344630,1.84193475,81.549,81.51,29.63638413]
[1770994344928,17.36801504,81.56,81.511,0.3152246]
[1770994345125,17.36801504,81.56,81.53,17.36801504]
[1770994345423,37.38,81.586,81.55,17.36801504]
[1770994345424,1.84193475,81.585,81.55,17.36801504]
[1770994345629,1.84193475,81.585,81.51,201.28691895]
[1770994345630,17.36801504,81.62,81.571,0.3152246]
[1770994345823,1.84193475,81.609,81.57,17.36801504]
[1770994346039,1.84193475,81.599,81.539,0.31770973]
[1770994346239,1.84193475,81.599,81.511,1.22682828]
[1770994346240,17.36801504,81.58,81.55,17.36801504]
[1770994346450,1.84193475,81.579,81.533,12.26497246]
[1770994346656,1.84193475,81.559,81.52,17.36801504]
[1770994346964,17.36801504,81.54,81.501,12.2697881]
[1770994347130,1.84193475,81.549,81.51,17.36801504]
[1770994347445,1.84193475,81.587,81.53,17.36801504]
[1770994347638,17.36801504,81.57,81.53,17.36801504]
[1770994347957,1.84193475,81.569,81.509,0.32021167]
[1770994348253,1.84193475,81.567,81.531,12.26527333]
[1770994348433,17.36801504,81.55,81.52,29.63484931]
[1770994348632,17.36801504,81.56,81.53,17.36801504]
[1770994349256,17.36801504,81.55,81.514,12.26771608]
[1770994349548,12.25970969,81.568,81.53,17.36801504]
[1770994349740,17.36801504,81.56,81.53,17.36801504]
[1770994350332,12.25910851,81.572,81.54,17.36801504]
[1770994350525,1.84193475,81.569,81.53,17.36801504]
[1770994350834,1.96455772,81.569,81.53,17.36801504]
[1770994351035,1.96455772,81.559,81.52,17.36801504]
[1770994351428,1.96455772,81.549,81.512,12.26813229]
[1770994351964,1.96455772,81.539,81.492,12.27114317]
[1770994352178,1.96455772,81.539,81.51,17.36801504]
[1770994352331,1.96455772,81.529,81.49,17.36801504]
[1770994352532,1.96455772,81.532,81.5,17.36801504]
[1770994352735,1.96455772,81.532,81.47,60.0]
[1770994352736,17.36801504,81.56,81.52,17.36801504]
[1770994353239,1.96455772,81.559,81.52,17.36801504]
[1770994353658,17.36801504,81.54,81.494,0.33378665]
[1770994353859,17.36801504,81.54,81.51,17.36801504]
[1770994354064,1.96455772,81.549,81.51,17.36801504]
[1770994354238,12.26106254,81.559,81.521,12.26677788]
[1770994354562,17.36801504,81.55,81.51,29.63642888]
[1770994354760,12.25955939,81.569,81.53,17.36801504]
[1770994354961,1.96455772,81.559,81.52,17.36801504]
[1770994355163,12.25955939,81.569,81.53,17.36801504]
[1770994355360,17.36801504,81.57,81.54,17.36801504]
[1770994355542,1.96455772,81.569,81.53,17.36801504]
[1770994355743,1.96455772,81.569,81.51,12.60527308]
[1770994355744,1.96455772,81.549,81.51,29.63642888]
[1770994356165,17.36801504,81.56,81.53,17.36801504]
[1770994356460,17.36801504,81.56,81.495,158.06464492]
[1770994356461,1.9414126,81.559,81.52,17.36801504]
[1770994356653,12.25906793,81.573,81.51,17.36801504]
[1770994356654,1.9414126,81.549,81.51,17.36801504]
[1770994357059,1.9414126,81.549,81.507,12.26888488]
[1770994357243,17.36801504,81.54,81.497,30.67563672]
[1770994357445,1.9414126,81.529,81.49,17.36801504]
[1770994357656,1.9414126,81.529,81.5,17.36801504]
[1770994357972,1.9414126,81.529,81.49,17.36801504]
[1770994358265,1.9414126,81.529,81.5,17.36801504]
[1770994358266,12.26572465,81.528,81.5,17.36801504]
[1770994358569,1.30021582,81.527,81.5,17.36801504]
[1770994358772,17.36801504,81.52,81.49,17.36801504]
[1770994359078,17.36801504,81.52,81.48,0.34133907]
[1770994359079,12.26271643,81.548,81.51,11.16436405]
[1770994359249,11.16436405,81.57,81.53,11.16436405]
[1770994359570,4.61729252,81.592,81.53,11.16436405]
[1770994359870,11.16436405,81.56,81.52,11.16436405]
[1770994360052,11.16436405,81.55,81.51,11.16436405]
[1770994360370,12.26256606,81.549,81.511,12.2682828]
[1770994360554,14.20397866,81.549,81.511,12.2682828]
[1770994360755,1.9414126,81.539,81.5,11.16436405]
[1770994360966,12.26256606,81.549,81.48,11.16436405]
[1770994360967,11.16436405,81.52,81.48,11.16436405]
[1770994361145,11.16436405,81.52,81.469,0.98968629]
[1770994361146,1.9414126,81.519,81.49,11.16436405]
[1770994361343,11.16436405,81.54,81.5,11.16436405]
[1770994361746,1.9414126,81.548,81.51,11.16436405]
[1770994361964,1.9414126,81.539,81.487,0.99153392]
[1770994362147,37.2,81.563,81.479,59.7]
[1770994362148,1.9414126,81.552,81.52,11.16436405]
[1770994362550,12.2619422,81.554,81.521,12.26677788]
[1770994362770,23.42535727,81.56,81.521,13.2583118]
[1770994362974,1.9414126,81.549,81.51,11.16436405]
[1770994363469,1.9414126,81.549,81.52,11.16436405]
[1770994363772,42.91327374,81.56,81.52,11.16436405]
[1770994363968,42.91327374,81.56,81.504,0.99335636]
[1770994363969,11.16436405,81.55,81.51,11.16436405]
[1770994364267,1.9414126,81.549,81.51,11.16436405]
[1770994364466,12.26572465,81.528,81.49,23.43575184]
[1770994364689,12.26506095,81.533,81.5,11.16436405]
[1770994364851,14.20647355,81.533,81.5,11.16436405]
[1770994365053,1.9414126,81.532,81.5,11.16436405]
[1770994365254,12.26353996,81.543,81.493,0.99696024]
[1770994365458,1.9414126,81.529,81.49,11.16436405]
[1770994365653,1.9414126,81.509,81.472,12.27412742]
[1770994365859,1.9414126,81.509,81.47,11.16436405]
[1770994366450,11.16436405,81.5,81.47,11.16436405]
[1770994366650,11.16436405,81.5,81.448,30.69413196]
[1770994366651,1.9414126,81.489,81.45,11.16436405]
[1770994366850,11.16436405,81.5,81.46,11.16436405]
[1770994367261,12.26873435,81.508,81.47,11.16436405]
[1770994367462,11.16436405,81.51,81.48,11.16436405]
[1770994367667,23.43292997,81.51,81.47,11.16436405]
[1770994367867,39.0614126,81.515,81.445,153.47780709]
[1770994367868,51.32917806,81.515,81.48,11.16436405]
[1770994368066,1.9414126,81.499,81.46,11.16436405]
[1770994368264,1.9414126,81.499,81.47,11.16436405]
[1770994368445,51.32917806,81.515,81.48,11.16436405]
[1770994368648,1.9414126,81.509,81.47,11.16436405]
[1770994368851,1.9414126,81.499,81.455,1.00223844]
[1770994369072,1.9414126,81.489,81.428,1.00394891]
[1770994369273,11.16436405,81.49,81.45,11.16436405]
[1770994369448,1.9414126,81.479,81.44,11.16436405]
[1770994369872,1.9414126,81.492,81.45,11.16436405]
[1770994370175,1.9414126,81.489,81.45,11.16436405]
[1770994370471,11.16436405,81.5,81.46,11.16436405]
[1770994370651,1.9414126,81.503,81.47,11.16436405]
[1770994370848,1.9414126,81.519,81.48,11.16436405]
[1770994371049,12.26557421,81.529,81.49,11.16436405]
[1770994371349,11.16436405,81.53,81.49,11.16436405]
[1770994371556,1.9414126,81.559,81.52,11.16436405]
[1770994371754,1.9414126,81.559,81.53,11.16436405]
[1770994372208,1.9414126,81.559,81.52,11.16436405]
[1770994372586,1.9414126,81.559,81.531,12.26527333]
[1770994372762,1.9414126,81.569,81.509,12.26858383]
[1770994372953,1.9414126,81.569,81.54,11.16436405]
[1770994373281,1.9414126,81.597,81.56,11.16436405]
[1770994373463,12.25550272,81.596,81.57,11.16436405]
[1770994373660,13.10577665,81.61,81.57,11.16436405]
[1770994373863,13.10577665,81.61,81.561,1.01061278]
[1770994373864,1.9414126,81.618,81.58,11.16436405]
[1770994374055,11.16436405,81.62,81.58,11.16436405]
[1770994374257,14.19296829,81.623,81.59,11.16436405]
[1770994374478,0.2,81.63,81.6,11.16436405]
[1770994374658,11.16436405,81.61,81.57,11.16436405]
[1770994374974,1.9414126,81.599,81.56,11.14289944]
[1770994375358,11.14289944,81.61,81.57,11.14289944]
[1770994375552,1.9414126,81.609,81.57,11.14289944]
[1770994375990,1.9414126,81.599,81.56,11.14289944]
[1770994376284,13.08431204,81.61,81.57,11.14289944]
[1770994376583,12.25355046,81.609,81.571,12.2592588]
[1770994376775,13.08431204,81.61,81.571,42.90740581]